[Event "*** Titled Tuesday Blitz"]
[Site "Chess.com"]
[Date "2020.10.20"]
[Round "5"]
[White "ZverevLev"]
[Black "Skat2704"]
[Result "0-1"]
[WhiteElo "2259"]
[BlackElo "1878"]
[TimeControl "180+1"]
[EndTime "10:54:59 PDT"]
[Termination "Skat2704 won by resignation"]

1. e4 {[%clk 0:02:55.3]} 1... c6 {[%clk 0:02:59.8]} 2. d4 {[%clk 0:02:53.4]}
2... d5 {[%clk 0:02:59.9]} 3. e5 {[%clk 0:02:51.6]} 3... Bf5 {[%clk 0:02:59.3]}
4. Nd2 {[%clk 0:02:50.7]} 4... e6 {[%clk 0:02:57.1]} 5. Nb3 {[%clk 0:02:50.5]}
5... Ne7 {[%clk 0:02:52.4]} 6. Nf3 {[%clk 0:02:48.8]} 6... Nd7 {[%clk
0:02:49.7]} 7. Be3 {[%clk 0:02:45.8]} 7... Nc8 {[%clk 0:02:33.2]} 8. c3 {[%clk
0:02:44.4]} 8... Be7 {[%clk 0:02:33.2]} 9. Bd3 {[%clk 0:02:43.8]} 9... Bxd3
{[%clk 0:02:32.5]} 10. Qxd3 {[%clk 0:02:44.7]} 10... O-O {[%clk 0:02:31.6]} 11.
h4 {[%clk 0:02:42.8]} 11... Qc7 {[%clk 0:02:19.8]} 12. Ng5 {[%clk 0:02:41.1]}
12... Bxg5 {[%clk 0:02:09.5]} 13. hxg5 {[%clk 0:02:42]} 13... g6 {[%clk
0:02:07.8]} 14. Rh6 {[%clk 0:02:36]} 14... c5 {[%clk 0:01:50.7]} 15. Nd2 {[%clk
0:02:30.9]} 15... cxd4 {[%clk 0:01:44.2]} 16. cxd4 {[%clk 0:02:31.8]} 16... Ne7
{[%clk 0:01:41.1]} 17. g4 {[%clk 0:02:30.7]} 17... Nc6 {[%clk 0:01:33.5]} 18. a3
{[%clk 0:02:27.8]} 18... Qb6 {[%clk 0:01:28.1]} 19. Ke2 {[%clk 0:02:16.8]} 19...
Kg7 {[%clk 0:01:21.7]} 20. Rah1 {[%clk 0:02:13.4]} 20... Rh8 {[%clk 0:01:21.5]}
21. b4 {[%clk 0:02:06.6]} 21... a5 {[%clk 0:01:20]} 22. b5 {[%clk 0:02:04.9]}
22... Ne7 {[%clk 0:01:17.6]} 23. a4 {[%clk 0:02:01]} 23... Rac8 {[%clk 0:01:17]}
24. Nb3 {[%clk 0:01:59.8]} 24... Rc4 {[%clk 0:01:11.7]} 25. Bd2 {[%clk
0:01:53.3]} 25... Rxa4 {[%clk 0:01:02.8]} 26. Nc5 {[%clk 0:01:52.3]} 26... Nxc5
{[%clk 0:01:00.6]} 27. Qh3 {[%clk 0:01:50]} 27... Ne4 {[%clk 0:00:47]} 28. Rxh7+
{[%clk 0:01:47.8]} 28... Rxh7 {[%clk 0:00:47.2]} 29. Qxh7+ {[%clk 0:01:48.1]}
29... Kf8 {[%clk 0:00:47.3]} 30. Qh6+ {[%clk 0:01:47.9]} 30... Ke8 {[%clk
0:00:45.6]} 31. Qh8+ {[%clk 0:01:47.7]} 31... Kd7 {[%clk 0:00:44.3]} 0-1

[Event "*** Titled Tuesday Blitz"]
[Site "Chess.com"]
[Date "2020.10.20"]
[Round "5"]
[White "shriyanasmallya"]
[Black "DinaBelenkaya"]
[Result "0-1"]
[WhiteElo "1659"]
[BlackElo "2279"]
[TimeControl "180+1"]
[EndTime "10:55:12 PDT"]
[Termination "DinaBelenkaya won by checkmate"]

1. e4 {[%clk 0:03:00.9]} 1... d5 {[%clk 0:02:58.7]} 2. exd5 {[%clk 0:02:59.1]}
2... Qxd5 {[%clk 0:02:59.6]} 3. Nc3 {[%clk 0:02:58.4]} 3... Qa5 {[%clk
0:02:57.3]} 4. d4 {[%clk 0:02:53.9]} 4... Nf6 {[%clk 0:02:54.6]} 5. Nf3 {[%clk
0:02:52.3]} 5... c6 {[%clk 0:02:54.5]} 6. Bd2 {[%clk 0:02:47.5]} 6... Bf5 {[%clk
0:02:42.2]} 7. Bd3 {[%clk 0:02:41.8]} 7... Bxd3 {[%clk 0:02:37.1]} 8. cxd3
{[%clk 0:02:40.3]} 8... e6 {[%clk 0:02:34.8]} 9. O-O {[%clk 0:02:29.4]} 9... Qb6
{[%clk 0:02:31.3]} 10. b3 {[%clk 0:02:27.2]} 10... Nbd7 {[%clk 0:02:31.2]} 11.
Ne4 {[%clk 0:02:25.3]} 11... Be7 {[%clk 0:02:30.3]} 12. Bf4 {[%clk 0:02:22.2]}
12... O-O {[%clk 0:02:29.4]} 13. Nd6 {[%clk 0:02:17.1]} 13... Nd5 {[%clk
0:02:28.1]} 14. Bg3 {[%clk 0:02:14]} 14... Bf6 {[%clk 0:02:28.1]} 15. Ne4 {[%clk
0:02:09.1]} 15... Bxd4 {[%clk 0:02:26.4]} 16. Nxd4 {[%clk 0:02:07.1]} 16... Qxd4
{[%clk 0:02:27.3]} 17. Qg4 {[%clk 0:01:55.6]} 17... f5 {[%clk 0:02:26.7]} 18.
Qh3 {[%clk 0:01:41.5]} 18... fxe4 {[%clk 0:02:26.6]} 19. Qxe6+ {[%clk
0:01:41.6]} 19... Rf7 {[%clk 0:02:24.8]} 20. dxe4 {[%clk 0:01:40.4]} 20... N5f6
{[%clk 0:02:17.4]} 21. Rad1 {[%clk 0:01:27.9]} 21... Qxe4 {[%clk 0:02:17.3]} 22.
Qxe4 {[%clk 0:01:23.6]} 22... Nxe4 {[%clk 0:02:18.2]} 23. Rfe1 {[%clk 0:01:20]}
23... Nxg3 {[%clk 0:02:18.2]} 24. fxg3 {[%clk 0:01:19.6]} 24... Raf8 {[%clk
0:02:19.1]} 25. h3 {[%clk 0:01:16.3]} 25... Nb6 {[%clk 0:02:19.1]} 26. a4 {[%clk
0:01:14.5]} 26... Nd5 {[%clk 0:02:19.5]} 27. Rd3 {[%clk 0:01:11.4]} 27... Rf2
{[%clk 0:02:19]} 28. Kh2 {[%clk 0:01:05.7]} 28... Rb2 {[%clk 0:02:19]} 29. h4
{[%clk 0:01:03.8]} 29... Rff2 {[%clk 0:02:18.9]} 30. Re8+ {[%clk 0:00:59.5]}
30... Kf7 {[%clk 0:02:18.7]} 31. Rb8 {[%clk 0:00:58.6]} 31... Rxg2+ {[%clk
0:02:18.8]} 32. Kh3 {[%clk 0:00:56.8]} 32... Rh2+ {[%clk 0:02:17.6]} 33. Kg4
{[%clk 0:00:56.5]} 33... Nf6+ {[%clk 0:02:15.3]} 34. Kf3 {[%clk 0:00:50.5]}
34... Rhf2+ {[%clk 0:02:13.5]} 35. Ke3 {[%clk 0:00:50.4]} 35... c5 {[%clk
0:02:00.8]} 36. Rxb7+ {[%clk 0:00:47.2]} 36... Ke6 {[%clk 0:02:01]} 37. Rxa7
{[%clk 0:00:46.3]} 37... Ng4+ {[%clk 0:01:59.7]} 38. Ke4 {[%clk 0:00:44.3]}
38... Rbe2+ {[%clk 0:02:00.6]} 39. Re3 {[%clk 0:00:42.7]} 39... Rxe3# {[%clk
0:02:01.1]} 0-1

[Event "*** Titled Tuesday Blitz"]
[Site "Chess.com"]
[Date "2020.10.20"]
[Round "5"]
[White "sjam6687"]
[Black "ezkybel"]
[Result "1-0"]
[WhiteElo "2646"]
[BlackElo "2447"]
[TimeControl "180+1"]
[EndTime "10:55:15 PDT"]
[Termination "sjam6687 won by resignation"]

1. d4 {[%clk 0:03:00.9]} 1... e6 {[%clk 0:02:56.9]} 2. c4 {[%clk 0:03:00.9]}
2... Bb4+ {[%clk 0:02:54.3]} 3. Nc3 {[%clk 0:03:00]} 3... Nf6 {[%clk 0:02:52.5]}
4. Nf3 {[%clk 0:02:59.8]} 4... c5 {[%clk 0:02:48.2]} 5. e3 {[%clk 0:02:58]} 5...
d5 {[%clk 0:02:47.8]} 6. Bd3 {[%clk 0:02:56.4]} 6... b6 {[%clk 0:02:43.1]} 7.
O-O {[%clk 0:02:54.8]} 7... Bxc3 {[%clk 0:02:41.6]} 8. bxc3 {[%clk 0:02:52.8]}
8... Bb7 {[%clk 0:02:42.5]} 9. cxd5 {[%clk 0:02:50.2]} 9... exd5 {[%clk
0:02:35.7]} 10. c4 {[%clk 0:02:45.5]} 10... O-O {[%clk 0:02:32.2]} 11. cxd5
{[%clk 0:02:43.3]} 11... Qxd5 {[%clk 0:02:29.8]} 12. dxc5 {[%clk 0:02:43.3]}
12... Rd8 {[%clk 0:02:16.1]} 13. Bc2 {[%clk 0:02:37.6]} 13... Qxd1 {[%clk
0:02:14.5]} 14. Bxd1 {[%clk 0:02:35.1]} 14... bxc5 {[%clk 0:02:13.7]} 15. Bb2
{[%clk 0:02:35.1]} 15... Ne4 {[%clk 0:02:09.7]} 16. Bb3 {[%clk 0:02:32.9]} 16...
Nc6 {[%clk 0:02:08.6]} 17. Rac1 {[%clk 0:02:30.6]} 17... Nb4 {[%clk 0:02:07]}
18. Ne5 {[%clk 0:02:30.6]} 18... Bd5 {[%clk 0:02:02.2]} 19. Bxd5 {[%clk
0:02:28.3]} 19... Nxd5 {[%clk 0:02:03.1]} 20. f3 {[%clk 0:02:25.1]} 20... Nef6
{[%clk 0:02:01.8]} 21. e4 {[%clk 0:02:25.1]} 21... Ne3 {[%clk 0:02:01]} 22. Rfe1
{[%clk 0:02:21.6]} 22... Nxg2 {[%clk 0:01:54.6]} 23. Kxg2 {[%clk 0:02:18.4]}
23... Rd2+ {[%clk 0:01:54.4]} 24. Kf1 {[%clk 0:02:19.3]} 24... Rxb2 {[%clk
0:01:54.8]} 25. Re2 {[%clk 0:02:17.3]} 25... Rab8 {[%clk 0:01:46.7]} 26. Rxc5
{[%clk 0:02:15.1]} 26... h5 {[%clk 0:01:43.8]} 27. Rc7 {[%clk 0:02:10.7]} 27...
R8b7 {[%clk 0:01:42.6]} 28. Rc8+ {[%clk 0:02:08.8]} 28... Kh7 {[%clk 0:01:42.2]}
29. Rxb2 {[%clk 0:02:08.9]} 29... Rxb2 {[%clk 0:01:41.4]} 30. Nxf7 {[%clk
0:02:09.8]} 30... Rxh2 {[%clk 0:01:40.2]} 31. e5 {[%clk 0:02:07.3]} 31... Nd5
{[%clk 0:01:38.8]} 32. Ng5+ {[%clk 0:01:57.3]} 32... Kg6 {[%clk 0:01:38.5]} 33.
Ne4 {[%clk 0:01:57.3]} 33... h4 {[%clk 0:01:36.1]} 34. e6 {[%clk 0:01:55.1]}
34... Rxa2 {[%clk 0:01:34.3]} 35. Rc5 {[%clk 0:01:53.7]} 35... Ne3+ {[%clk
0:01:24.8]} 36. Kg1 {[%clk 0:01:51.8]} 36... Ra1+ {[%clk 0:01:23.5]} 37. Kf2
{[%clk 0:01:50.3]} 37... Nd1+ {[%clk 0:01:22.2]} 38. Ke2 {[%clk 0:01:49.1]}
38... h3 {[%clk 0:01:17.5]} 39. e7 {[%clk 0:01:47.2]} 39... Kf7 {[%clk
0:01:16.9]} 40. Re5 {[%clk 0:01:45.5]} 40... Nc3+ {[%clk 0:01:00.9]} 41. Nxc3
{[%clk 0:01:44.2]} 41... h2 {[%clk 0:00:57.8]} 42. e8=Q+ {[%clk 0:01:42.6]} 1-0

[Event "*** Titled Tuesday Blitz"]
[Site "Chess.com"]
[Date "2020.10.20"]
[Round "5"]
[White "baki83"]
[Black "Sanan_Sjugirov"]
[Result "0-1"]
[WhiteElo "2751"]
[BlackElo "2919"]
[TimeControl "180+1"]
[EndTime "10:55:19 PDT"]
[Termination "Sanan_Sjugirov won by resignation"]

1. e4 {[%clk 0:03:00.9]} 1... c5 {[%clk 0:02:57]} 2. Nf3 {[%clk 0:03:01.2]} 2...
Nc6 {[%clk 0:02:54.7]} 3. Bb5 {[%clk 0:02:59.1]} 3... d6 {[%clk 0:02:54.1]} 4.
O-O {[%clk 0:02:58.5]} 4... Bd7 {[%clk 0:02:53.5]} 5. Re1 {[%clk 0:02:58.4]}
5... Nf6 {[%clk 0:02:51.9]} 6. c3 {[%clk 0:02:57.6]} 6... a6 {[%clk 0:02:51.6]}
7. Bf1 {[%clk 0:02:57.5]} 7... Bg4 {[%clk 0:02:49.9]} 8. h3 {[%clk 0:02:56.9]}
8... Bxf3 {[%clk 0:02:49.3]} 9. Qxf3 {[%clk 0:02:57.8]} 9... e6 {[%clk
0:02:48.4]} 10. d3 {[%clk 0:02:58]} 10... Be7 {[%clk 0:02:47.3]} 11. Be3 {[%clk
0:02:58.6]} 11... d5 {[%clk 0:02:20.4]} 12. Nd2 {[%clk 0:02:45.9]} 12... O-O
{[%clk 0:02:18.4]} 13. Bf4 {[%clk 0:02:37.5]} 13... Rc8 {[%clk 0:02:14.7]} 14.
a4 {[%clk 0:02:35.5]} 14... Qb6 {[%clk 0:01:52]} 15. Rab1 {[%clk 0:02:20.8]}
15... Rfd8 {[%clk 0:01:51.3]} 16. exd5 {[%clk 0:02:19.5]} 16... Nxd5 {[%clk
0:01:49.5]} 17. Nc4 {[%clk 0:02:05.7]} 17... Qa7 {[%clk 0:01:48.6]} 18. Bg3
{[%clk 0:01:56.2]} 18... b5 {[%clk 0:01:47.3]} 19. axb5 {[%clk 0:01:54.7]} 19...
axb5 {[%clk 0:01:48.2]} 20. Ra1 {[%clk 0:01:54.2]} 20... Qd7 {[%clk 0:01:45.3]}
21. Ne3 {[%clk 0:01:45.6]} 21... Nxe3 {[%clk 0:01:37.7]} 22. Qxe3 {[%clk
0:01:27.8]} 22... Ra8 {[%clk 0:01:35.7]} 23. Be2 {[%clk 0:01:23.1]} 23... b4
{[%clk 0:01:33]} 24. Qe4 {[%clk 0:01:20]} 24... bxc3 {[%clk 0:01:30.9]} 25. bxc3
{[%clk 0:01:20.9]} 25... Bf6 {[%clk 0:01:22]} 26. Rxa8 {[%clk 0:01:14.1]} 26...
Rxa8 {[%clk 0:01:22.9]} 27. Bf3 {[%clk 0:01:12.1]} 27... Rc8 {[%clk 0:01:22.3]}
28. Qc4 {[%clk 0:01:10.9]} 28... Na5 {[%clk 0:01:10.1]} 29. Qa6 {[%clk
0:01:10.9]} 29... Bxc3 {[%clk 0:01:09.6]} 30. Rc1 {[%clk 0:01:10.8]} 30... Bb4
{[%clk 0:01:09.1]} 31. d4 {[%clk 0:01:03.8]} 31... Nb3 {[%clk 0:01:08.4]} 0-1

[Event "*** Titled Tuesday Blitz"]
[Site "Chess.com"]
[Date "2020.10.20"]
[Round "5"]
[White "KhamzinOlzhas"]
[Black "Klavdia_Nik"]
[Result "1-0"]
[WhiteElo "2333"]
[BlackElo "2071"]
[TimeControl "180+1"]
[EndTime "10:55:19 PDT"]
[Termination "KhamzinOlzhas won by resignation"]

1. e4 {[%clk 0:02:45.3]} 1... g6 {[%clk 0:02:56.3]} 2. d4 {[%clk 0:02:44.7]}
2... Bg7 {[%clk 0:02:56.4]} 3. Nc3 {[%clk 0:02:44.3]} 3... d6 {[%clk 0:02:55]}
4. Be3 {[%clk 0:02:44.3]} 4... c6 {[%clk 0:02:47.6]} 5. Qd2 {[%clk 0:02:41]}
5... Nd7 {[%clk 0:02:46.9]} 6. Nf3 {[%clk 0:02:40.5]} 6... a6 {[%clk 0:02:45.8]}
7. h3 {[%clk 0:02:40.6]} 7... b5 {[%clk 0:02:44.6]} 8. Bd3 {[%clk 0:02:40.9]}
8... Bb7 {[%clk 0:02:42.6]} 9. a4 {[%clk 0:02:41.5]} 9... Rb8 {[%clk 0:02:28.1]}
10. O-O {[%clk 0:02:40.6]} 10... h6 {[%clk 0:02:26.3]} 11. Rfe1 {[%clk 0:02:34]}
11... b4 {[%clk 0:02:22.3]} 12. Ne2 {[%clk 0:02:33.8]} 12... a5 {[%clk
0:02:22.1]} 13. Ng3 {[%clk 0:02:34.4]} 13... Qc7 {[%clk 0:02:20.9]} 14. c3
{[%clk 0:02:34.8]} 14... c5 {[%clk 0:02:20.2]} 15. d5 {[%clk 0:02:12.2]} 15...
bxc3 {[%clk 0:02:16]} 16. bxc3 {[%clk 0:02:13.1]} 16... Ne5 {[%clk 0:02:14.2]}
17. Nxe5 {[%clk 0:02:10.7]} 17... Bxe5 {[%clk 0:02:13.4]} 18. Bb5+ {[%clk
0:02:02.6]} 18... Kf8 {[%clk 0:02:11.9]} 19. Rab1 {[%clk 0:02:01.4]} 19... Bc8
{[%clk 0:02:06.5]} 20. f4 {[%clk 0:01:59.8]} 20... Bg7 {[%clk 0:02:06.8]} 21.
Bf2 {[%clk 0:01:54.6]} 21... h5 {[%clk 0:01:59.4]} 22. Qe3 {[%clk 0:01:42.3]}
22... h4 {[%clk 0:01:50.6]} 23. Nf1 {[%clk 0:01:42.4]} 23... Bd7 {[%clk
0:00:59.6]} 24. Bxd7 {[%clk 0:01:36]} 24... Rxb1 {[%clk 0:00:49.1]} 25. Rxb1
{[%clk 0:01:36.9]} 25... Bf6 {[%clk 0:00:48.8]} 26. Bb5 {[%clk 0:01:35.5]} 26...
Kg7 {[%clk 0:00:48.6]} 27. Nd2 {[%clk 0:01:32.5]} 27... g5 {[%clk 0:00:45.6]}
28. fxg5 {[%clk 0:01:31.4]} 28... Be5 {[%clk 0:00:44.4]} 29. Nc4 {[%clk
0:01:32.1]} 29... f6 {[%clk 0:00:44.2]} 30. Nxe5 {[%clk 0:01:29.2]} 30... fxe5
{[%clk 0:00:40.9]} 31. Bc6 {[%clk 0:01:28.9]} 1-0

[Event "*** Titled Tuesday Blitz"]
[Site "Chess.com"]
[Date "2020.10.20"]
[Round "5"]
[White "OhanyanEminChess"]
[Black "crazy_but_lazy"]
[Result "1-0"]
[WhiteElo "2654"]
[BlackElo "2467"]
[TimeControl "180+1"]
[EndTime "10:55:20 PDT"]
[Termination "OhanyanEminChess won by resignation"]

1. e4 {[%clk 0:03:00.9]} 1... e6 {[%clk 0:02:59.7]} 2. d4 {[%clk 0:03:00.9]}
2... d5 {[%clk 0:02:59.4]} 3. exd5 {[%clk 0:03:01.8]} 3... exd5 {[%clk
0:02:59.6]} 4. Bd3 {[%clk 0:03:02.3]} 4... Nc6 {[%clk 0:02:58.1]} 5. c3 {[%clk
0:03:01.2]} 5... Bd6 {[%clk 0:02:56.7]} 6. Ne2 {[%clk 0:02:57]} 6... Nge7 {[%clk
0:02:56.2]} 7. O-O {[%clk 0:02:57.2]} 7... Be6 {[%clk 0:02:48.9]} 8. Bf4 {[%clk
0:02:57.1]} 8... Qd7 {[%clk 0:02:48.4]} 9. Nd2 {[%clk 0:02:56]} 9... f6 {[%clk
0:02:42.6]} 10. Bxd6 {[%clk 0:02:55.1]} 10... Qxd6 {[%clk 0:02:42.2]} 11. Ng3
{[%clk 0:02:56]} 11... h5 {[%clk 0:02:38.9]} 12. Nxh5 {[%clk 0:02:47.2]} 12...
O-O-O {[%clk 0:02:38.6]} 13. Ng3 {[%clk 0:02:36.2]} 13... g5 {[%clk 0:02:23.1]}
14. Re1 {[%clk 0:02:35]} 14... Rh6 {[%clk 0:02:12.9]} 15. Qe2 {[%clk 0:02:34.5]}
15... Bd7 {[%clk 0:02:00.6]} 16. Nb3 {[%clk 0:02:27.5]} 16... Rdh8 {[%clk
0:01:54]} 17. h3 {[%clk 0:02:22.6]} 17... f5 {[%clk 0:01:51.9]} 18. Nc5 {[%clk
0:02:21.2]} 18... f4 {[%clk 0:01:41.1]} 19. Nxd7 {[%clk 0:02:19.9]} 19... Qxd7
{[%clk 0:01:34.1]} 20. Nf1 {[%clk 0:02:13]} 20... g4 {[%clk 0:01:18.5]} 21. Nh2
{[%clk 0:02:07.6]} 21... f3 {[%clk 0:00:38.3]} 22. Qe3 {[%clk 0:01:44.1]} 22...
fxg2 {[%clk 0:00:30.9]} 23. Kxg2 {[%clk 0:01:26.3]} 23... R6h7 {[%clk
0:00:30.3]} 24. Bxh7 {[%clk 0:01:25.2]} 1-0

[Event "*** Titled Tuesday Blitz"]
[Site "Chess.com"]
[Date "2020.10.20"]
[Round "5"]
[White "Gerodot71"]
[Black "PauloCesarCosta_sad"]
[Result "1-0"]
[WhiteElo "2458"]
[BlackElo "2273"]
[TimeControl "180+1"]
[EndTime "10:55:23 PDT"]
[Termination "Gerodot71 won on time"]

1. d4 {[%clk 0:03:00.9]} 1... d5 {[%clk 0:02:56.5]} 2. c4 {[%clk 0:03:01.3]}
2... c6 {[%clk 0:02:56.9]} 3. Nf3 {[%clk 0:03:01.1]} 3... e6 {[%clk 0:02:57.1]}
4. Nc3 {[%clk 0:02:58.2]} 4... dxc4 {[%clk 0:02:55.4]} 5. a4 {[%clk 0:02:56.6]}
5... Bb4 {[%clk 0:02:53.5]} 6. e4 {[%clk 0:02:48.3]} 6... b5 {[%clk 0:02:40.2]}
7. Be2 {[%clk 0:02:46]} 7... Nf6 {[%clk 0:02:38.9]} 8. Qc2 {[%clk 0:02:44.4]}
8... Qb6 {[%clk 0:02:30.1]} 9. O-O {[%clk 0:02:38.6]} 9... Nbd7 {[%clk
0:02:20.4]} 10. Be3 {[%clk 0:02:30.6]} 10... Bxc3 {[%clk 0:02:18.5]} 11. bxc3
{[%clk 0:02:30.1]} 11... Ng4 {[%clk 0:02:09.6]} 12. Bf4 {[%clk 0:02:26.7]} 12...
Bb7 {[%clk 0:01:59.7]} 13. Rab1 {[%clk 0:02:25.5]} 13... O-O {[%clk 0:01:50.4]}
14. Bxc4 {[%clk 0:02:23]} 14... a6 {[%clk 0:01:41.7]} 15. Bd3 {[%clk 0:02:19.6]}
15... h6 {[%clk 0:01:37.3]} 16. e5 {[%clk 0:02:11.3]} 16... f5 {[%clk
0:00:14.8]} 17. h3 {[%clk 0:02:07.5]} 17... Nxf2 {[%clk 0:00:12.8]} 18. Rxf2
{[%clk 0:02:05.7]} 18... c5 {[%clk 0:00:13.7]} 19. axb5 {[%clk 0:02:00.7]} 19...
cxd4 {[%clk 0:00:13.5]} 20. bxa6 {[%clk 0:01:58.6]} 20... Qxb1+ {[%clk
0:00:13.4]} 21. Qxb1 {[%clk 0:01:58.2]} 21... Bxf3 {[%clk 0:00:14.3]} 22. Rxf3
{[%clk 0:01:57.7]} 22... Nxe5 {[%clk 0:00:15.2]} 23. Bxe5 {[%clk 0:01:57.8]}
23... Rxa6 {[%clk 0:00:15.1]} 24. Bxa6 {[%clk 0:01:57.6]} 24... dxc3 {[%clk
0:00:14.5]} 25. Rg3 {[%clk 0:01:55.7]} 25... Rf7 {[%clk 0:00:13.7]} 26. Qb8+
{[%clk 0:01:54.9]} 26... Kh7 {[%clk 0:00:13]} 27. Qc8 {[%clk 0:01:51.5]} 27...
c2 {[%clk 0:00:08.5]} 28. Qxc2 {[%clk 0:01:51.2]} 1-0

[Event "*** Titled Tuesday Blitz"]
[Site "Chess.com"]
[Date "2020.10.20"]
[Round "5"]
[White "Goryachkina"]
[Black "ehrenfeld"]
[Result "1-0"]
[WhiteElo "2664"]
[BlackElo "2487"]
[TimeControl "180+1"]
[EndTime "10:55:29 PDT"]
[Termination "Goryachkina won by resignation"]

1. e4 {[%clk 0:02:56.9]} 1... d6 {[%clk 0:02:58.5]} 2. d4 {[%clk 0:02:56.4]}
2... g6 {[%clk 0:02:58.3]} 3. Nc3 {[%clk 0:02:55]} 3... Bg7 {[%clk 0:02:58.2]}
4. Be3 {[%clk 0:02:55.2]} 4... b6 {[%clk 0:02:58.1]} 5. Qd2 {[%clk 0:02:48]}
5... Bb7 {[%clk 0:02:57.5]} 6. O-O-O {[%clk 0:02:47.8]} 6... Nd7 {[%clk
0:02:57.4]} 7. h4 {[%clk 0:02:46.8]} 7... h5 {[%clk 0:02:56.6]} 8. Nf3 {[%clk
0:02:42.5]} 8... c5 {[%clk 0:02:52.1]} 9. Ng5 {[%clk 0:02:41.3]} 9... cxd4
{[%clk 0:02:30.6]} 10. Bxd4 {[%clk 0:02:41.1]} 10... Ngf6 {[%clk 0:02:30.8]} 11.
f4 {[%clk 0:02:18.7]} 11... e5 {[%clk 0:01:34.9]} 12. Be3 {[%clk 0:02:16.9]}
12... O-O {[%clk 0:01:33.4]} 13. Qxd6 {[%clk 0:02:09.8]} 13... Ng4 {[%clk
0:01:30]} 14. Qxd7 {[%clk 0:01:59.2]} 14... Nxe3 {[%clk 0:01:22.1]} 15. Qxb7
{[%clk 0:01:57.6]} 15... Nxd1 {[%clk 0:01:21.5]} 16. Nxd1 {[%clk 0:01:58.2]}
16... exf4 {[%clk 0:01:18.3]} 17. Bc4 {[%clk 0:01:57.7]} 17... Qf6 {[%clk
0:00:54]} 18. Bxf7+ {[%clk 0:01:51.7]} 18... Kh8 {[%clk 0:00:52.5]} 19. Bd5
{[%clk 0:01:48.2]} 19... Rac8 {[%clk 0:00:44.1]} 20. Ne6 {[%clk 0:01:27.9]}
20... Rfe8 {[%clk 0:00:24.2]} 21. Nxg7 {[%clk 0:01:27.2]} 21... Qxg7 {[%clk
0:00:24.2]} 22. Qxg7+ {[%clk 0:01:26.8]} 22... Kxg7 {[%clk 0:00:24]} 23. Rf1
{[%clk 0:01:27]} 23... Rf8 {[%clk 0:00:20.4]} 24. Rf3 {[%clk 0:01:27.2]} 24...
Rce8 {[%clk 0:00:19.2]} 25. Nf2 {[%clk 0:01:27.2]} 25... g5 {[%clk 0:00:16]} 26.
hxg5 {[%clk 0:01:27.1]} 26... Kg6 {[%clk 0:00:16.3]} 27. Nh3 {[%clk 0:01:27.4]}
1-0

[Event "*** Titled Tuesday Blitz"]
[Site "Chess.com"]
[Date "2020.10.20"]
[Round "5"]
[White "FredyMatsuura"]
[Black "sotochess"]
[Result "0-1"]
[WhiteElo "2393"]
[BlackElo "2631"]
[TimeControl "180+1"]
[EndTime "10:55:34 PDT"]
[Termination "sotochess won by resignation"]

1. d4 {[%clk 0:03:00.9]} 1... Nf6 {[%clk 0:02:59.7]} 2. c4 {[%clk 0:03:00.4]}
2... g6 {[%clk 0:02:57]} 3. Nc3 {[%clk 0:02:59.7]} 3... d5 {[%clk 0:02:57]} 4.
cxd5 {[%clk 0:02:59.3]} 4... Nxd5 {[%clk 0:02:57.1]} 5. e4 {[%clk 0:03:00]} 5...
Nxc3 {[%clk 0:02:57.2]} 6. bxc3 {[%clk 0:03:00.7]} 6... Bg7 {[%clk 0:02:58.1]}
7. Be3 {[%clk 0:03:00.7]} 7... O-O {[%clk 0:02:56.7]} 8. Qd2 {[%clk 0:03:00]}
8... c5 {[%clk 0:02:57.6]} 9. Rc1 {[%clk 0:02:58.5]} 9... Qa5 {[%clk 0:02:56.5]}
10. Be2 {[%clk 0:02:51.3]} 10... Rd8 {[%clk 0:02:55.7]} 11. d5 {[%clk
0:02:50.4]} 11... e6 {[%clk 0:02:55.3]} 12. c4 {[%clk 0:02:50.3]} 12... Qxd2+
{[%clk 0:02:51.6]} 13. Bxd2 {[%clk 0:02:48.3]} 13... exd5 {[%clk 0:02:49.8]} 14.
cxd5 {[%clk 0:02:42.1]} 14... b6 {[%clk 0:02:48.5]} 15. Bc3 {[%clk 0:02:26.6]}
15... Bh6 {[%clk 0:02:43.9]} 16. Rd1 {[%clk 0:02:22.4]} 16... Ba6 {[%clk
0:02:41.7]} 17. Bxa6 {[%clk 0:02:20.5]} 17... Nxa6 {[%clk 0:02:41.1]} 18. Ne2
{[%clk 0:02:19.1]} 18... Re8 {[%clk 0:02:37.3]} 19. e5 {[%clk 0:02:04.1]} 19...
Nb4 {[%clk 0:02:34.2]} 20. O-O {[%clk 0:01:47.9]} 20... Nxa2 {[%clk 0:02:33.8]}
21. Bb2 {[%clk 0:01:38]} 21... Nb4 {[%clk 0:02:24]} 22. f4 {[%clk 0:01:34.8]}
22... Rad8 {[%clk 0:02:20.3]} 23. d6 {[%clk 0:01:34]} 23... f6 {[%clk
0:02:15.1]} 24. Ng3 {[%clk 0:01:11]} 24... fxe5 {[%clk 0:02:14.1]} 25. fxe5
{[%clk 0:01:11.2]} 25... Bg7 {[%clk 0:02:10.8]} 26. Rfe1 {[%clk 0:00:58.5]}
26... c4 {[%clk 0:02:00.5]} 27. d7 {[%clk 0:00:47.4]} 27... Re6 {[%clk
0:01:56.3]} 28. Ne4 {[%clk 0:00:46.8]} 28... Nd3 {[%clk 0:01:49]} 29. Ng5 {[%clk
0:00:44.8]} 29... Re7 {[%clk 0:01:45.1]} 30. Ba3 {[%clk 0:00:34.3]} 30... Rxe5
{[%clk 0:01:34.8]} 31. Ne6 {[%clk 0:00:28.7]} 31... Rxd7 {[%clk 0:01:30.9]} 32.
Nxg7 {[%clk 0:00:24.3]} 32... Rxe1+ {[%clk 0:01:30.4]} 0-1

[Event "*** Titled Tuesday Blitz"]
[Site "Chess.com"]
[Date "2020.10.20"]
[Round "5"]
[White "tan275"]
[Black "PattyCastillo"]
[Result "1-0"]
[WhiteElo "2175"]
[BlackElo "1926"]
[TimeControl "180+1"]
[EndTime "10:55:39 PDT"]
[Termination "tan275 won by resignation"]

1. d4 {[%clk 0:03:00.9]} 1... d5 {[%clk 0:02:59.1]} 2. c4 {[%clk 0:03:00.2]}
2... c6 {[%clk 0:02:57.5]} 3. Nf3 {[%clk 0:02:59.6]} 3... Nf6 {[%clk 0:02:57.1]}
4. g3 {[%clk 0:03:00]} 4... e6 {[%clk 0:02:57]} 5. Bg2 {[%clk 0:03:00.2]} 5...
Bd6 {[%clk 0:02:56.4]} 6. O-O {[%clk 0:02:56.3]} 6... O-O {[%clk 0:02:56.4]} 7.
Nfd2 {[%clk 0:02:54.8]} 7... Nbd7 {[%clk 0:02:55.8]} 8. Nc3 {[%clk 0:02:54.5]}
8... e5 {[%clk 0:02:31.7]} 9. dxe5 {[%clk 0:02:19.7]} 9... Nxe5 {[%clk
0:02:25.9]} 10. cxd5 {[%clk 0:02:16.5]} 10... cxd5 {[%clk 0:02:24]} 11. Nxd5
{[%clk 0:02:12.8]} 11... Nxd5 {[%clk 0:02:22.9]} 12. Bxd5 {[%clk 0:02:13.2]}
12... Bh3 {[%clk 0:02:19.9]} 13. Bg2 {[%clk 0:02:12.7]} 13... Bxg2 {[%clk
0:02:18.2]} 14. Kxg2 {[%clk 0:02:13.6]} 14... Qb6 {[%clk 0:02:08.6]} 15. Qb3
{[%clk 0:02:02.3]} 15... Qc6+ {[%clk 0:02:07.1]} 16. Nf3 {[%clk 0:01:58.5]}
16... Rfe8 {[%clk 0:01:55.9]} 17. Bd2 {[%clk 0:01:22]} 17... Nxf3 {[%clk
0:01:45.9]} 18. exf3 {[%clk 0:01:21.3]} 18... Rad8 {[%clk 0:01:40.9]} 19. Rac1
{[%clk 0:01:17.3]} 19... Qd7 {[%clk 0:01:35.5]} 20. Bg5 {[%clk 0:01:14.4]} 20...
Be7 {[%clk 0:01:29.2]} 21. Rfd1 {[%clk 0:01:08.3]} 21... Qf5 {[%clk 0:00:37.4]}
22. Bxe7 {[%clk 0:01:04.1]} 22... Rxd1 {[%clk 0:00:33.4]} 23. Rxd1 {[%clk
0:00:58.5]} 1-0